Cogmind - Beta 13 @@@ ROGUE MODE // 2024.03.10 @ 00:14:16 Player: Qwertychrish Result: Destroyed by Alpha 7 with Enhanced Gamma Rifle Performance ------------- Evolutions (7) 3500 Regions Visited (17) 3400 Robots Destroyed (82) 410 Value Destroyed (3417) 3417 Prototype IDs (28) 560 Alien Tech Used (1) 200 Bonus (536) 536 TOTAL SCORE: 12023 Bonus ------- Pacifist 200 High Alert Combat Kills 36 Met Zhirov 300 Cogmind --------- Core Integrity 0/1300 Matter 148/300 Energy 129/150 System Corruption 8% Temperature Cool (0) Movement Flying (28) Location -3/Testing Parts ------- > --- POWER (2) -------- Micro Antimatter Reactor > --- PROPULSION (6) --- Electron Diverter Electron Diverter Electron Diverter Electron Diverter Impulse Thruster Array > --- UTILITY (10) ----- Experimental Coolant Injector Enhanced Optical Array Advanced Signal Interpreter Experimental Signal Interpreter Improved Targeting Computer Melee Analysis Suite Hacking Suite Improved Hacking Suite > --- WEAPON (3) ------- Tactical Quantum Warhead Nanosword > --- INVENTORY (5) ---- Cooled Antigrav System Electron Diverter Advanced Heat Sink Coil Gun Peak State ------------ > --- POWER ------------ Micro Antimatter Reactor Micro Antimatter Reactor > --- PROPULSION ------- Cooled Antigrav System Electron Diverter Electron Diverter Electron Diverter Impulse Thruster Array > --- UTILITY ---------- Experimental Coolant Injector Enhanced Optical Array Advanced Signal Interpreter Experimental Signal Interpreter Improved Targeting Computer Melee Analysis Suite Hacking Suite Improved Hacking Suite Advanced System Shield > --- WEAPON ----------- Tactical Quantum Warhead Nanosword > --- INVENTORY -------- Electron Diverter Electron Diverter Electron Diverter Advanced Heat Sink Coil Gun [Rating: 135] Favorites ----------- Power Light Fission Core Engine Light Ion Engine Power Core Light Fission Core Reactor Micro Antimatter Reactor Propulsion Aluminum Leg Treads Light Treads Leg Aluminum Leg Wheel Compact Wheel Hover Unit Improved Gravmag System Flight Unit Biomechanical Wings Utility Enhanced Optical Array Device Advanced Sensor Array Storage Large Storage Unit Processor Enhanced Optical Array Hackware Improved Hacking Suite Protection Propulsion Shielding Weapon Heavy Machine Gun Energy Gun Heavy Laser Energy Cannon Heavy Particle Cannon Ballistic Gun Heavy Machine Gun Ballistic Cannon Heavy Gauss Cannon Launcher Tactical Quantum Warhead Impact Weapon Flail Slashing Weapon Ionic Axe Piercing Weapon Force Lance Build | -11 -10 -9 -8 -7 -7 -6 -6 -6 -5 -5 -4 -4 -4 -4 -3 -3 -3 ------- Run | Yrd Mat Mat Mat Fac Sto Fac Low Low Fac Ext Fac Upp Upp Zhi Pro Res Tes Slots Evolved 14 | . . 2 2 2 . 2 . . 2 . 2 . . . . 2 . Power 1 | . . . . . . . . . . . 1 . . . . . . Propulsion 4 | . . 2 . . . 2 . . . . . . . . . . . Utility 8 | . . . 2 1 . . . . 2 . 1 . . . . 2 . Weapon 1 | . . . . 1 . . . . . . . . . . . . . Parts Attached 183 | 6 1 6 14 15 5 20 4 . 23 11 11 1 1 4 . 40 21 Power 21 | 1 . 1 2 1 1 3 . . 1 1 1 . . . . 7 2 Engine 4 | 1 . 1 . 1 . . . . . 1 . . . . . . . Core 8 | . . . 2 . 1 3 . . 1 . 1 . . . . . . Reactor 9 | . . . . . . . . . . . . . . . . 7 2 Propulsion 65 | 2 . 4 6 3 2 5 1 . 6 5 3 . . . . 14 14 Treads 2 | . . 2 . . . . . . . . . . . . . . . Leg 13 | . . . 6 . 1 . . . . . . . . . . . 6 Wheel 4 | 2 . 1 . 1 . . . . . . . . . . . . . Hover 28 | . . . . . . 3 1 . 6 3 2 . . . . 11 2 Flight 18 | . . 1 . 2 1 2 . . . 2 1 . . . . 3 6 Utility 67 | 1 1 . 5 6 2 9 3 . 13 3 3 1 1 3 . 13 3 Device 39 | . . . 3 4 . 6 2 . 8 1 2 . . 2 . 10 1 Storage 4 | 1 1 . . . . . 1 . 1 . . . . . . . . Processor 13 | . . . 2 1 . 2 . . 1 1 . 1 1 . . 2 2 Hackware 6 | . . . . . . 1 . . 3 . . . . 1 . 1 . Protection 5 | . . . . 1 2 . . . . 1 1 . . . . . . Artifact . | . . . . . . . . . . . . . . . . . . Weapon 30 | 2 . 1 1 5 . 3 . . 3 2 4 . . 1 . 6 2 Energy Gun 5 | 1 . . . . . 2 . . . . 1 . . . . 1 . Energy Cannon 2 | . . . . 1 . . . . . . . . . . . 1 . Ballistic Gun 11 | 1 . 1 1 2 . 1 . . 1 . 2 . . 1 . 1 . Ballistic Cannon 2 | . . . . 1 . . . . . . . . . . . 1 . Launcher 5 | . . . . . . . . . 1 1 . . . . . 2 1 Special Weapon . | . . . . . . . . . . . . . . . . . . Impact Weapon 1 | . . . . 1 . . . . . . . . . . . . . Slashing Weapon 3 | . . . . . . . . . 1 1 . . . . . . 1 Piercing Weapon 1 | . . . . . . . . . . . 1 . . . . . . Special Melee Weapon . | . . . . . . . . . . . . . . . . . . Unidentified Prototypes 16 | . . 2 . . . 2 . . 1 1 . . . 1 . 2 7 Parts Lost 74 | . . . 5 7 8 . . . 6 11 . 1 . . . 33 3 Power 11 | . . . 2 1 1 . . . 1 1 . . . . . 4 1 Propulsion 31 | . . . 3 3 6 . . . 2 7 . . . . . 10 . Utility 21 | . . . . 1 1 . . . 3 1 . 1 . . . 12 2 Weapon 11 | . . . . 2 . . . . . 2 . . . . . 7 . Highest Loss Streak 15 | . . . 2 4 6 . . . 3 8 . 1 . . . 15 2 To Critical Strikes 1 | . . . . . . . . . . . . . . . . 1 . Average Slot Usage (%) 82 | . 97 94 90 96 79 73 86 93 91 64 62 73 68 75 78 76 67 Engine 2 | . 14 11 6 3 4 . . . . . . . . . . . . Core 3 | . . . 2 2 1 5 6 6 5 4 4 5 5 5 5 2 . Leg 5 | . . . 25 21 9 . . . . . . . . . . . 5 Wheel 4 | . 28 33 8 . . . . . . . . . . . . . . Hover 10 | . . . . . . 11 20 26 24 17 7 10 10 10 10 15 3 Flight 4 | . . . . 6 12 3 6 6 2 . 9 10 10 10 10 3 9 Device 7 | . . . 7 14 6 5 6 6 7 . 5 10 10 12 15 9 3 Storage 4 | . 25 22 9 3 . . . 6 5 4 . . . . . . . Processor 15 | . . . 11 18 23 25 25 20 14 16 15 21 15 14 10 14 20 Hackware 5 | . . . . . . . . . 9 11 10 10 10 12 15 13 14 Energy Gun 2 | . 14 1 . . . 5 6 6 2 . . . . . . . . Ballistic Gun 8 | . 14 20 18 12 8 5 6 6 7 . 1 . . 2 5 3 . Impact Weapon 2 | . . . . 3 7 6 6 6 2 . . . . . . . . Piercing Weapon 1 | . . . . . . . . . . . 2 5 5 5 5 3 . Naked Turns . | . . . . . . . . . . . . . . . . . . Heaviest Build 47 | 12 32 33 32 41 17 19 29 29 45 39 13 13 13 21 21 47 34 Greatest Support 74 | 26 26 42 42 40 20 40 52 52 63 55 13 13 13 22 22 74 40 Greatest Overweight (x) 3 | . 1 1 1 2 2 . . . 1 2 . . . . . 3 . Average Overweight (x) . | . . . . . . . . . . . . . . . . . . Largest Inventory Capacity 15 | 8 15 15 15 15 5 5 10 10 15 15 5 5 5 5 5 5 5 Average Capacity 9 | 6 13 15 15 10 5 5 5 10 14 14 5 5 5 5 5 5 5 Most Carried 15 | 6 9 15 15 15 5 5 9 10 15 15 5 5 5 5 5 5 5 Average Carried 8 | 4 8 10 14 9 4 4 5 9 14 13 4 4 4 4 5 4 3 Final Capacity 15 | 8 15 15 15 5 5 5 10 10 15 5 5 5 5 5 5 5 5 Final Carried 15 | 6 9 15 15 5 5 5 9 10 15 5 5 5 5 5 5 2 4 Class Distribution -------------------- 20% | Scout 17% | Hacker-Mutant 16% | Hacker-Ninja 15% | Mutant 10% | Scavenger-Skirmisher 5% | Hacker-Scout 5% | Scavenger-Assassin Dominant Class ---------------- Mutant | -10/Materials Mutant | -9/Materials Scavenger-Skirmisher | -8/Materials Scavenger-Assassin | -7/Factory Scavenger-Assassin | -7/Storage Scout | -6/Factory Scout | -6/Lower Caves Scout | -6/Lower Caves Hacker-Scout | -5/Factory Hacker-Mutant | -5/Extension Hacker-Mutant | -4/Factory Hacker-Ninja | -4/Upper Caves Hacker-Ninja | -4/Upper Caves Hacker-Ninja | -4/Zhirov Hacker-Ninja | -3/Proximity Caves Hacker-Mutant | -3/Research Hacker-Mutant | -3/Testing Resources | -11 -10 -9 -8 -7 -7 -6 -6 -6 -5 -5 -4 -4 -4 -4 -3 -3 -3 ----------- Run | Yrd Mat Mat Mat Fac Sto Fac Low Low Fac Ext Fac Upp Upp Zhi Pro Res Tes Matter Collected 2727 | 162 . 297 384 255 148 . 255 . 263 105 156 10 10 . 37 573 72 Remotely . | . . . . . . . . . . . . . . . . . . Salvage Created 2970 | . . 297 531 206 167 . . . 590 238 84 . 31 . . 655 171 Parts 178 | . . 19 30 8 5 . . . 46 5 1 . 1 . . 53 10 Haulers Intercepted 1 | . . 1 . . . . . . . . . . . . . . . Recyclers Shooed . | . . . . . . . . . . . . . . . . . . Parts Field Recycled . | . . . . . . . . . . . . . . . . . . Retrieved Matter . | . . . . . . . . . . . . . . . . . . Parts Self-Destructed 8 | . . . . . . . . 1 . . . . 7 . . . . Prevented 1 | . . . . . . . . . . . . . 1 . . . . Kills | -11 -10 -9 -8 -7 -7 -6 -6 -6 -5 -5 -4 -4 -4 -4 -3 -3 -3 ------- Run | Yrd Mat Mat Mat Fac Sto Fac Low Low Fac Ext Fac Upp Upp Zhi Pro Res Tes Combat Hostiles Destroyed 60 | . . 4 9 6 5 . . . 11 6 . . 1 . . 16 2 Melee 15 | . . . . . 1 . . . 4 1 . . 1 . . 6 2 Guns 16 | . . 4 9 1 2 . . . . . . . . . . . . Cannons 10 | . . . . 5 . . . . . . . . . . . 5 . AOE 17 | . . . . . . . . . 7 5 . . . . . 5 . Classes Destroyed 11 | . . 5 1 2 . . . . 2 . . . . . . 1 . Worker 6 | . . 1 . . . . . . 2 . . . . . . 3 . Builder 5 | . . . . . . . . . 2 . . . . . . 3 . Hauler 1 | . . 1 . . . . . . . . . . . . . . . Operator 1 | . . 1 . . . . . . . . . . . . . . . Watcher 9 | . . 2 2 . . . . . 2 . 2 . . . . 1 . Swarmer 17 | . . . . 3 3 . . . 4 . . . . . . 7 . Cutter 2 | . . . . . . . . . . . . . . . . 2 . Grunt 19 | . . 4 8 . 2 . . . . 5 . . . . . . . Sentry 4 | . . . 1 2 . . . . . . . . . . . . 1 Hunter 6 | . . . . . . . . . 3 . . . 1 . . 2 . Programmer 11 | . . . . 1 . . . . 4 . . . . . . 5 1 Thug 1 | . . . . . . . . . . 1 . . . . . . . Best Kill Streak 11 | . . 3 3 4 2 . . . 11 6 1 . 1 . . 11 1 Combat Bots Only 7 | . . 1 3 4 2 . . . 7 6 . . 1 . . 5 1 Max Kills in Single Turn 6 | . . 1 1 1 1 . . . 6 2 1 . 1 . . 5 1 Gunslinging . | . . . . . . . . . . . . . . . . . . Exploded 5 | . . . . . . . . . 5 2 . . . . . 2 . Melee 1 | . . . . . 1 . . . 1 1 . . 1 . . 1 1 Uniques/NPCs Destroyed . | . . . . . . . . . . . . . . . . . . Combat | -11 -10 -9 -8 -7 -7 -6 -6 -6 -5 -5 -4 -4 -4 -4 -3 -3 -3 -------- Run | Yrd Mat Mat Mat Fac Sto Fac Low Low Fac Ext Fac Upp Upp Zhi Pro Res Tes Hostile Shots Fired 781 | . 3 12 58 140 61 24 1 . 76 70 . 4 13 . . 267 52 Missed 277 | . . 4 11 51 15 12 1 . 28 24 . 3 7 . . 95 26 Damage Taken 9754 | . 22 86 780 822 693 88 . . 1109 1106 . 17 129 . . 4232 670 Core 2428 | . . 21 85 111 206 23 . . 125 449 . . 84 . . 1146 178 Absorbed by Shields 85 | . . . . . . . . . . . . . . . . 85 . Redirected to Shielding 22 | . . . . . . . . . . 22 . . . . . . . Core Remaining (%) 82 | 100 100 94 84 . 54 . . 97 . 42 . . . . 92 . . Volleys Fired 142 | 1 . 21 44 28 7 . . . 3 5 . . . . . 33 . Largest 3 | 2 . 2 2 3 2 . . . 1 1 . . . . . 2 . Hottest 155 | 70 . 43 46 142 46 . . . 46 46 . . . . . 155 . Shots Fired 278 | 2 . 42 88 73 14 . . . 3 5 . . . . . 51 . Gun 205 | 2 . 42 88 34 14 . . . . . . . . . . 25 . Cannon 59 | . . . . 39 . . . . . . . . . . . 20 . Launcher 14 | . . . . . . . . . 3 5 . . . . . 6 . Special . | . . . . . . . . . . . . . . . . . . Kinetic 230 | 1 . 42 88 51 14 . . . . . . . . . . 34 . Thermal 34 | 1 . . . 22 . . . . . . . . . . . 11 . Explosive 14 | . . . . . . . . . 3 5 . . . . . 6 . Electromagnetic . | . . . . . . . . . . . . . . . . . . Robot Hit Streak 12 | . . 12 12 6 9 . . . 5 10 . . . . . 8 . Robot Miss Streak 5 | . . 2 2 5 1 . . . . . . . . . . 3 . Penetration Max . | . . . . . . . . . . . . . . . . . . Secondary Targets 1 | . . . 1 . . . . . . . . . . . . . . Max Gunslinging Chain 1 | . . . 1 . . . . . . . . . . . . . . Shots Hit Robots 237 | . . 28 68 36 18 2 . . 14 6 7 . 3 . . 45 10 Core Hits 157 | . . 14 29 13 5 . . . 35 15 1 . 1 . . 39 5 Critical Kills . | . . . . . . . . . . . . . . . . . . Critical Parts Destroyed 2 | . . 1 . . 1 . . . . . . . . . . . . Critical Strikes 19 | . . 1 . 2 1 . . . 4 . 1 . 1 . . 6 3 Destroy 1 | . . 1 . . . . . . . . . . . . . . . Blast 4 | . . . . 2 . . . . . . . . . . . 2 . Smash 1 | . . . . . 1 . . . . . . . . . . . . Sever 7 | . . . . . . . . . 4 . . . . . . . 3 Impale 6 | . . . . . . . . . . . 1 . 1 . . 4 . Melee Attacks 117 | . . . . . 14 11 . . 23 1 18 . 3 . . 21 26 Impact 25 | . . . . . 14 11 . . . . . . . . . . . Slashing 50 | . . . . . . . . . 23 1 . . . . . . 26 Piercing 42 | . . . . . . . . . . . 18 . 3 . . 21 . Sneak Attacks 1 | . . . . . . . . . 1 . . . . . . . . Combat Hostiles . | . . . . . . . . . . . . . . . . . . Follow-up Attacks . | . . . . . . . . . . . . . . . . . . Damage Inflicted 8762 | 25 . 399 1003 767 394 76 . . 1375 956 342 . 201 . . 2637 587 Guns 2284 | 25 . 399 1002 235 188 . . . . . . . . . . 435 . Cannons 1114 | . . . . 532 . . . . . . . . . . . 582 . Explosions 2674 | . . . . . . . . . 706 900 . . . . . 1068 . Melee 2689 | . . . . . 206 76 . . 669 56 342 . 201 . . 552 587 Ramming 1 | . . . 1 . . . . . . . . . . . . . . Kinetic 2872 | 13 . 399 1002 486 188 . . . . . . . . . . 784 . Thermal 526 | 12 . . . 281 . . . . . . . . . . . 233 . Explosive 2288 | . . . . . . . . . 320 900 . . . . . 1068 . Electromagnetic 386 | . . . . . . . . . 386 . . . . . . . . Impact 282 | . . . . . 206 76 . . . . . . . . . . . Slashing 1312 | . . . . . . . . . 669 56 . . . . . . 587 Piercing 1095 | . . . . . . . . . . . 342 . 201 . . 552 . Highest Corruption 8 | . . 3 . 1 1 . . . 8 8 . . . . . 7 7 Average Corruption 4 | . . 3 . 1 1 . . . 6 8 . . . . . 5 7 Corruption Purged . | . . . . . . . . . . . . . . . . . . Corruption Blocked . | . . . . . . . . . . . . . . . . . . Effects 40 | . . 1 . 4 3 . . . 6 6 . . . . . 12 8 Message Errors 10 | . . 1 . 1 . . . . 2 . . . . . . 1 5 Matter Fused 9 | . . . . 2 . . . . . 2 . . . . . 3 2 Heat Flow Errors 5 | . . . . . 2 . . . 1 . . . . . . 2 . Energy Discharges 4 | . . . . . . . . . 2 1 . . . . . 1 . Parts Rejected 2 | . . . . . . . . . . 1 . . . . . . 1 Data Loss (minor) 5 | . . . . 1 1 . . . 1 1 . . . . . 1 . Data Loss (major) 1 | . . . . . . . . . . 1 . . . . . . . Misfires 1 | . . . . . . . . . . . . . . . . 1 . Weapon Failures 3 | . . . . . . . . . . . . . . . . 3 . Overload Shots . | . . . . . . . . . . . . . . . . . . Overflow Damage 564 | . . . . . 59 30 . . 67 1 119 . . . . 255 33 Projectiles 38 | . . . . . . . . . . . . . . . . 38 . Explosions 177 | . . . . . . . . . 2 1 . . . . . 174 . Melee 349 | . . . . . 59 30 . . 65 . 119 . . . . 43 33 Knockbacks 9 | . . . . 3 . . . . . . . . . . . 6 . Impact . | . . . . . . . . . . . . . . . . . . Kinetic 9 | . . . . 3 . . . . . . . . . . . 6 . Secondary . | . . . . . . . . . . . . . . . . . . Self-Inflicted Damage 373 | . . . . . . . . . 172 44 . . . . . 157 . Shots 11 | . . . . . . . . . 5 3 . . . . . 3 . Rammed . | . . . . . . . . . . . . . . . . . . Targets Rammed 1 | . . . 1 . . . . . . . . . . . . . . Kicked 1 | . . . 1 . . . . . . . . . . . . . . Crushed . | . . . . . . . . . . . . . . . . . . Highest Temperature 415 | 9 . . 20 415 170 . . . 205 18 . . . . . 264 . Average Temperature 99 | 6 . . 10 141 105 . . . 98 9 . . . . . 73 . Received Heat Transfer 1365 | . . 48 441 156 72 24 . . . 252 . . . . . 318 54 Effects 2 | . . . . 2 . . . . . . . . . . . . . Shutdowns 1 | . . . . 1 . . . . . . . . . . . . . Damage (minor) 1 | . . . . 1 . . . . . . . . . . . . . Siege Activations . | . . . . . . . . . . . . . . . . . . Robots Corrupted . | . . . . . . . . . . . . . . . . . . Combat Hostiles . | . . . . . . . . . . . . . . . . . . Parts Fried 5 | . . . . . 1 . . . 4 . . . . . . . . Impact Corruptions 4 | . . . . . 3 1 . . . . . . . . . . . Robots Melted . | . . . . . . . . . . . . . . . . . . Combat Hostiles . | . . . . . . . . . . . . . . . . . . Parts Melted . | . . . . . . . . . . . . . . . . . . Heat Transferred 740 | 37 . . . 407 . . . . . . . . . . . 296 . Parts Sabotaged . | . . . . . . . . . . . . . . . . . . Parts Stolen . | . . . . . . . . . . . . . . . . . . Parts Stripped . | . . . . . . . . . . . . . . . . . . Power Chain Reactions . | . . . . . . . . . . . . . . . . . . Alert | -11 -10 -9 -8 -7 -7 -6 -6 -6 -5 -5 -4 -4 -4 -4 -3 -3 -3 ------- Run | Yrd Mat Mat Mat Fac Sto Fac Low Low Fac Ext Fac Upp Upp Zhi Pro Res Tes Peak Influence 494 | . 26 249 147 154 71 64 . . 426 494 379 . . . . 295 208 Initial 210 | . . 5 20 66 7 32 . . . 208 210 . . . . . 121 Average 96 | . 16 88 87 71 28 41 . . 54 402 268 . . . . 113 155 Maximum Alert Level 2 | . . 1 . . . . . . 2 2 1 . . . . 1 1 Low Security (%) 86 | 100 100 83 100 100 100 100 . . 96 . . . . . . 84 99 Level 1 10 | . . 16 . . . . . . . 30 100 . . . . 15 . Level 2 2 | . . . . . . . . . 3 69 . . . . . . . Level 3 . | . . . . . . . . . . . . . . . . . . Level 4 . | . . . . . . . . . . . . . . . . . . Level 5 . | . . . . . . . . . . . . . . . . . . High Security . | . . . . . . . . . . . . . . . . . . Max Security . | . . . . . . . . . . . . . . . . . . Squads Dispatched 16 | . 1 1 1 1 . 1 . . 2 1 1 . . . . 7 . Investigation 1 | . . . 1 . . . . . . . . . . . . . . Extermination 5 | . . . . 1 . . . . 2 . 1 . . . . 1 . Reinforcement 9 | . 1 1 . . . 1 . . . 1 . . . . . 5 . Assault . | . . . . . . . . . . . . . . . . . . Garrison 1 | . . . . . . . . . . . . . . . . 1 . Intercept . | . . . . . . . . . . . . . . . . . . Searches Triggered . | . . . . . . . . . . . . . . . . . . Construction Impeded 2 | . . . . . . . . . . . . . . . . 2 . Haulers Reinforced . | . . . . . . . . . . . . . . . . . . Active Scanning Responses . | . . . . . . . . . . . . . . . . . . Cargo Convoy Interrupts . | . . . . . . . . . . . . . . . . . . Stealth | -11 -10 -9 -8 -7 -7 -6 -6 -6 -5 -5 -4 -4 -4 -4 -3 -3 -3 --------- Run | Yrd Mat Mat Mat Fac Sto Fac Low Low Fac Ext Fac Upp Upp Zhi Pro Res Tes Distress Signals 11 | . . 2 2 . . . . . 2 1 . . . . . 2 2 Communications Jammed . | . . . . . . . . . . . . . . . . . . Distress Signals . | . . . . . . . . . . . . . . . . . . Times Spotted 159 | . 5 13 15 10 6 3 3 . 15 17 4 3 7 . . 49 9 Peak Tracking Total 10 | . 3 3 4 3 3 1 2 . 10 7 2 3 4 . . 9 5 Tactical Retreats 15 | . . 2 . . 1 . 2 . 1 2 . . 2 . . 5 . Traps | -11 -10 -9 -8 -7 -7 -6 -6 -6 -5 -5 -4 -4 -4 -4 -3 -3 -3 ------- Run | Yrd Mat Mat Mat Fac Sto Fac Low Low Fac Ext Fac Upp Upp Zhi Pro Res Tes Traps Triggered 3 | . . . 1 . . . . . . . . . . . . 2 . Indirectly . | . . . . . . . . . . . . . . . . . . Trap Hack Attempts . | . . . . . . . . . . . . . . . . . . Triggered . | . . . . . . . . . . . . . . . . . . Disarmed . | . . . . . . . . . . . . . . . . . . Reprogrammed . | . . . . . . . . . . . . . . . . . . Reused . | . . . . . . . . . . . . . . . . . . Traps Extracted . | . . . . . . . . . . . . . . . . . . Installed . | . . . . . . . . . . . . . . . . . . Triggered 2 | . . . . . . . . . . . . . 1 . 1 . . Machines | -11 -10 -9 -8 -7 -7 -6 -6 -6 -5 -5 -4 -4 -4 -4 -3 -3 -3 ---------- Run | Yrd Mat Mat Mat Fac Sto Fac Low Low Fac Ext Fac Upp Upp Zhi Pro Res Tes Machines Disabled 6 | . . . . . . . . . 6 . . . . . . . . Max in Single Turn 3 | . . . . . . . . . 3 . . . . . . . . Machines Repaired . | . . . . . . . . . . . . . . . . . . Machines Dismantled . | . . . . . . . . . . . . . . . . . . Machines Sabotaged . | . . . . . . . . . . . . . . . . . . Overloaded Fab Kills . | . . . . . . . . . . . . . . . . . . Hacking | -11 -10 -9 -8 -7 -7 -6 -6 -6 -5 -5 -4 -4 -4 -4 -3 -3 -3 --------- Run | Yrd Mat Mat Mat Fac Sto Fac Low Low Fac Ext Fac Upp Upp Zhi Pro Res Tes Machines Accessed 31 | . 4 3 1 . . 2 . . 2 4 3 1 . 9 . 1 1 Terminals 21 | . 4 3 1 . . 2 . . 2 4 3 . . . . 1 1 Fabricators . | . . . . . . . . . . . . . . . . . . Repair Stations . | . . . . . . . . . . . . . . . . . . Recycling Units . | . . . . . . . . . . . . . . . . . . Scanalyzers . | . . . . . . . . . . . . . . . . . . Garrison Access . | . . . . . . . . . . . . . . . . . . Total Hacks 102 | . 14 7 2 . . 4 . . 5 8 10 1 . 48 . 2 1 Successful 78 | . 9 4 . . . 2 . . 2 7 4 1 . 48 . 1 . Failed 24 | . 5 3 2 . . 2 . . 3 1 6 . . . . 1 1 Catastrophic 3 | . 1 1 . . . . . . . . . . . . . . 1 Database Lockouts . | . . . . . . . . . . . . . . . . . . Manual 38 | . 9 5 2 . . 4 . . 2 4 10 . . . . 1 1 Terminals 53 | . 14 7 2 . . 4 . . 5 8 10 . . . . 2 1 Fabricators . | . . . . . . . . . . . . . . . . . . Repair Stations . | . . . . . . . . . . . . . . . . . . Recycling Units . | . . . . . . . . . . . . . . . . . . Scanalyzers . | . . . . . . . . . . . . . . . . . . Garrison Access . | . . . . . . . . . . . . . . . . . . Terminal Hacks 61 | . 4 1 . . . . . . 2 4 . 1 . 48 . 1 . Record 39 | . . . . . . . . . 1 2 . . . 36 . . . Part Schematic 4 | . . . . . . . . . . . . . . 4 . . . Robot Analysis 5 | . 1 . . . . . . . . . . . . 4 . . . Prototype ID Bank 5 | . 1 . . . . . . . . . . . . 4 . . . Open Door 4 | . . . . . . . . . 1 2 . 1 . . . . . Alert Level 1 | . . 1 . . . . . . . . . . . . . . . Unreport Threat 2 | . 1 . . . . . . . . . . . . . . 1 . Locate Traps 1 | . 1 . . . . . . . . . . . . . . . . Fabricator Hacks . | . . . . . . . . . . . . . . . . . . Repair Station Hacks . | . . . . . . . . . . . . . . . . . . Recycling Unit Hacks . | . . . . . . . . . . . . . . . . . . Scanalyzer . | . . . . . . . . . . . . . . . . . . Garrison Access Hacks . | . . . . . . . . . . . . . . . . . . Unauthorized Hacks 17 | . 5 3 . . . 2 . . . 3 4 . . . . . . Terminals 17 | . 5 3 . . . 2 . . . 3 4 . . . . . . Track 7 | . 2 1 . . . 1 . . . 1 2 . . . . . . Botnet 10 | . 3 2 . . . 1 . . . 2 2 . . . . . . Fabricators . | . . . . . . . . . . . . . . . . . . Repair Stations . | . . . . . . . . . . . . . . . . . . Recycling Units . | . . . . . . . . . . . . . . . . . . Scanalyzers . | . . . . . . . . . . . . . . . . . . Garrison Access . | . . . . . . . . . . . . . . . . . . Data Cores Recovered . | . . . . . . . . . . . . . . . . . . Used . | . . . . . . . . . . . . . . . . . . Hacking Detections 17 | . 4 3 1 . . 1 . . 1 3 2 . . . . 1 1 Full Trace Events 1 | . 1 . . . . . . . . . . . . . . . . Feedback Events . | . . . . . . . . . . . . . . . . . . Feedback Blocked . | . . . . . . . . . . . . . . . . . . Robot Schematics Acquired . | . . . . . . . . . . . . . . . . . . Robots Built . | . . . . . . . . . . . . . . . . . . Authchips . | . . . . . . . . . . . . . . . . . . Time . | . . . . . . . . . . . . . . . . . . Total Robot Build Rating . | . . . . . . . . . . . . . . . . . . Part Schematics Acquired 4 | . . . . . . . . . . . . . . 4 . . . Parts Built . | . . . . . . . . . . . . . . . . . . Authchips . | . . . . . . . . . . . . . . . . . . Time . | . . . . . . . . . . . . . . . . . . Total Part Build Rating . | . . . . . . . . . . . . . . . . . . Parts Repaired . | . . . . . . . . . . . . . . . . . . Time . | . . . . . . . . . . . . . . . . . . Parts Recycled . | . . . . . . . . . . . . . . . . . . Recycled Matter . | . . . . . . . . . . . . . . . . . . Retrieved Matter . | . . . . . . . . . . . . . . . . . . Retrieved Components . | . . . . . . . . . . . . . . . . . . Parts Scanalyzed . | . . . . . . . . . . . . . . . . . . Part Schematics Acquired . | . . . . . . . . . . . . . . . . . . Parts Damaged . | . . . . . . . . . . . . . . . . . . Bothacking | -11 -10 -9 -8 -7 -7 -6 -6 -6 -5 -5 -4 -4 -4 -4 -3 -3 -3 ------------ Run | Yrd Mat Mat Mat Fac Sto Fac Low Low Fac Ext Fac Upp Upp Zhi Pro Res Tes Used RIF Installer . | . . . . . . . . . . . . . . . . . . Robots Hacked . | . . . . . . . . . . . . . . . . . . Non-combat . | . . . . . . . . . . . . . . . . . . Combat . | . . . . . . . . . . . . . . . . . . Robot Hacks Applied . | . . . . . . . . . . . . . . . . . . Relay Couplers Released . | . . . . . . . . . . . . . . . . . . Fabnet Peak Effective % . | . . . . . . . . . . . . . . . . . . Robots Rewired . | . . . . . . . . . . . . . . . . . . Allies Hacked . | . . . . . . . . . . . . . . . . . . Hacks Repelled . | . . . . . . . . . . . . . . . . . . Allies | -11 -10 -9 -8 -7 -7 -6 -6 -6 -5 -5 -4 -4 -4 -4 -3 -3 -3 -------- Run | Yrd Mat Mat Mat Fac Sto Fac Low Low Fac Ext Fac Upp Upp Zhi Pro Res Tes Total Allies 1 | . . . . . . . . . . 1 . . . . . . . Largest Group 1 | . . . . . . . . . . 1 . . . . . . . Highest-Rated Group 25 | . . . . . . . . . . 25 . . . . . . . Highest-Rated Ally 25 | . . . . . . . . . . 25 . . . . . . . Total Orders . | . . . . . . . . . . . . . . . . . . Ally Attacks 3 | . . . . . . . . . . 3 . . . . . . . Total Damage 66 | . . . . . . . . . . 66 . . . . . . . Kills . | . . . . . . . . . . . . . . . . . . Allies Corrupted . | . . . . . . . . . . . . . . . . . . Allies Melted . | . . . . . . . . . . . . . . . . . . Intel | -11 -10 -9 -8 -7 -7 -6 -6 -6 -5 -5 -4 -4 -4 -4 -3 -3 -3 ------- Run | Yrd Mat Mat Mat Fac Sto Fac Low Low Fac Ext Fac Upp Upp Zhi Pro Res Tes Robot Analysis Total 5 | . 1 . . . . . . . . . . . . 4 . . . Derelict Logs Recovered 3 | . . . . . . . . . . . . 1 2 . . . . Drone Launches . | . . . . . . . . . . . . . . . . . . Drone Recoveries . | . . . . . . . . . . . . . . . . . . Exploration | -11 -10 -9 -8 -7 -7 -6 -6 -6 -5 -5 -4 -4 -4 -4 -3 -3 -3 ------------- Run | Yrd Mat Mat Mat Fac Sto Fac Low Low Fac Ext Fac Upp Upp Zhi Pro Res Tes Turns Passed 6517 | 54 202 465 725 551 199 608 699 122 695 174 251 82 349 89 255 782 215 Spaces Moved 8451 | 45 194 317 417 329 167 896 1216 241 897 255 470 213 761 181 500 1075 277 Core 262 | 10 . . . . 35 100 . . . . . . . . . 7 110 Treads 7 | . . 7 . . . . . . . . . . . . . . . Legs 770 | . . . 382 326 62 . . . . . . . . . . . . Wheels 577 | 35 194 310 35 3 . . . . . . . . . . . . . Hover 5043 | . . . . . . 796 1216 241 897 241 . . . 84 500 1068 . Flight 1792 | . . . . . 70 . . . . 14 470 213 761 97 . . 167 Fastest Speed 28 | 50 90 93 93 120 32 50 50 50 44 40 37 37 37 37 51 38 28 Average Speed 58 | 81 102 96 119 122 76 55 51 50 55 56 37 37 37 43 51 50 40 Slowest Speed 240 | 90 105 240 190 190 190 60 52 50 105 180 40 37 37 51 51 200 50 Overloaded Moves . | . . . . . . . . . . . . . . . . . . Propulsion Burnouts . | . . . . . . . . . . . . . . . . . . Robots Hopped 6 | . . . . . 2 . . . . 3 . . . . . . 1 Cave-ins Triggered 1 | . . . . . . . . . 1 . . . . . . . . Exploration Rate (%) 37 | 3 45 29 38 7 44 22 90 20 18 41 8 34 76 63 76 25 32 Regions Visited 17 Branch Regions 9 Pre-discovered Areas 4 | . . . . . . . . . . . . . 1 3 . . . Known Exits Taken 14 | . . . 1 1 1 1 1 1 1 1 1 1 1 1 1 1 . Unknown Exits Taken 3 | 1 1 1 . . . . . . . . . . . . . . . Scrap Searched 15 | . . . . . . . 5 5 . . . 2 . . 3 . . Spaces Dug 23 | . . . . . . 8 . . 6 . . . . . . . 9 Terrain Destroyed 204 | . . . . 1 . 8 . . 32 80 . . . . . 74 9 Melee 23 | . . . . . . 8 . . 6 . . . . . . . 9 Projectile 3 | . . . . 1 . . . . . . . . . . . 2 . AOE 178 | . . . . . . . . . 26 80 . . . . . 72 . Terrain Rammed . | . . . . . . . . . . . . . . . . . . Walls Destroyed . | . . . . . . . . . . . . . . . . . . Machines Disabled . | . . . . . . . . . . . . . . . . . . Actions | -11 -10 -9 -8 -7 -7 -6 -6 -6 -5 -5 -4 -4 -4 -4 -3 -3 -3 --------- Run | Yrd Mat Mat Mat Fac Sto Fac Low Low Fac Ext Fac Upp Upp Zhi Pro Res Tes Total 9492 | 57 197 435 558 419 205 990 1281 241 1058 273 505 215 820 190 499 1215 334 Wait 419 | . . 81 54 34 6 41 57 . 85 . . . 54 1 . 6 . Move 8423 | 44 193 316 416 328 162 895 1215 240 896 249 469 212 760 180 499 1074 275 Hop 5 | . . . . . 2 . . . . 2 . . . . . . 1 Pick Up 89 | 6 3 8 12 7 2 12 4 1 13 2 3 1 1 1 . 8 5 Fast Attach 91 | 6 1 1 9 3 3 7 2 . 4 2 6 1 1 4 . 24 17 Attach 50 | . . 4 2 9 2 4 . . 4 9 3 . . 1 . 9 3 Detach 8 | . . 1 1 . 1 . . . 2 . 1 . . . . 2 . Swap 43 | . . 1 3 3 . 9 2 . 15 . 2 . . . . 7 1 Drop 89 | . . 2 16 7 6 11 1 . 13 3 3 1 1 3 . 16 6 Fire 142 | 1 . 21 44 28 7 . . . 3 5 . . . . . 33 . Melee 117 | . . . . . 14 11 . . 23 1 18 . 3 . . 21 26 Ram . | . . . . . . . . . . . . . . . . . . Kick 1 | . . . 1 . . . . . . . . . . . . . . Crush . | . . . . . . . . . . . . . . . . . . Escape Stasis 15 | . . . . . . . . . . . . . . . . 15 . Rewire . | . . . . . . . . . . . . . . . . . . Trap . | . . . . . . . . . . . . . . . . . . Miscellaneous . | . . . . . . . . . . . . . . . . . . Route ------- -11/Scrapyard -10/Materials -9/Materials -8/Materials -7/Factory -7/Storage -6/Factory -6/Lower Caves -6/Lower Caves -5/Factory -5/Extension -4/Factory -4/Upper Caves -4/Upper Caves -4/Zhirov -3/Proximity Caves -3/Research -3/Testing History --------- Turn | Location | Event 12 | -11/Scrapyard | Discovered new exit (range 15) 55 | -11/Scrapyard | Entered Materials 254 | -10/Materials | Discovered new exit (range 3) 257 | -10/Materials | Entered another Materials area 257 | -9/Materials | Evolved 2 slots: Propulsion x2 316 | -9/Materials | Build established: Mutant 493 | -9/Materials | Discovered new exit (range 8) 722 | -9/Materials | Entered another Materials area 722 | -8/Materials | Evolved 2 slots: Utility x2 1278 | -8/Materials | Build established: Scavenger-Skirmisher 1357 | -8/Materials | Discovered new exit (range 5) 1445 | -8/Materials | Identified exit to Factory 1447 | -8/Materials | Entered Factory 1447 | -7/Factory | Evolved 2 slots: Utility x1, Weapon x1 1694 | -7/Factory | Lost 3 parts (1p1n1w) 1766 | -7/Factory | Lost 4 parts (2n1u1w) 1839 | -7/Factory | Discovered new exit (range 10) 1856 | -7/Factory | Identified exit to Storage 1998 | -7/Factory | Entered Storage 2050 | -7/Storage | Build established: Scavenger-Assassin 2186 | -7/Storage | Discovered new exit (range 17) 2194 | -7/Storage | Identified exit to Factory 2197 | -7/Storage | Entered Factory 2197 | -6/Factory | Evolved 2 slots: Propulsion x2 2200 | -6/Factory | Lost 6 parts (1p4n1u) 2645 | -6/Factory | Build established: Scout 2793 | -6/Factory | Discovered new exit (range 19) 2802 | -6/Factory | Identified exit to Lower Caves 2805 | -6/Factory | Entered Lower Caves 2883 | -6/Lower Caves | Encountered a Warlord checkpoint 3392 | -6/Lower Caves | Discovered new exit (range 17) 3400 | -6/Lower Caves | Identified exit to Lower Caves 3504 | -6/Lower Caves | Entered another Lower Caves area 3577 | -6/Lower Caves | Discovered new exit (range 8) 3579 | -6/Lower Caves | Identified exit to Factory 3626 | -6/Lower Caves | Entered Factory 3626 | -5/Factory | Evolved 2 slots: Utility x2 4074 | -5/Factory | Crushed by falling debris 4319 | -5/Factory | Destroyed 7 combat bots 4319 | -5/Factory | Discovered new exit (range 6) 4321 | -5/Factory | Identified exit to Extension 4321 | -5/Factory | Entered Extension 4322 | -5/Extension | Lost 3 parts (1n2u) 4404 | -5/Extension | Rescued a captive Derelict 4411 | -5/Extension | Lost 3 parts (2n1w) 4468 | -5/Extension | Spotted B-75 Beast 4472 | -5/Extension | Spotted B-75 Beast 4494 | -5/Extension | Core integrity fell below 50% 4494 | -5/Extension | Discovered new exit (range 3) 4494 | -5/Extension | Identified exit to Factory 4495 | -5/Extension | Entered Factory 4495 | -4/Factory | Evolved 2 slots: Power x1, Utility x1 4523 | -4/Factory | Lost 8 parts (1p5n1u1w) 4588 | -4/Factory | Discovered new exit (range 9) 4591 | -4/Factory | Identified exit to Upper Caves 4598 | -4/Factory | Build established: Hacker-Mutant 4746 | -4/Factory | Entered Upper Caves 4821 | -4/Upper Caves | Learned Research trap positions 4822 | -4/Upper Caves | Discovered new exit (range 18) 4824 | -4/Upper Caves | Attracted the attention of an 0b10 checkpoint 4828 | -4/Upper Caves | Identified exit to Upper Caves 4828 | -4/Upper Caves | Entered another Upper Caves area 4840 | -4/Upper Caves | Learned location of Testing (-3) 4929 | -4/Upper Caves | Learned Research stockpile data 5019 | -4/Upper Caves | Build established: Hacker-Ninja 5049 | -4/Upper Caves | Encountered a Warlord checkpoint 5174 | -4/Upper Caves | Discovered new exit (range 6) 5176 | -4/Upper Caves | Identified exit to Zhirov 5177 | -4/Upper Caves | Entered Zhirov 5177 | -4/Zhirov | Discovered new exit (range 3) 5178 | -4/Zhirov | Identified exit to Proximity Caves 5184 | -4/Zhirov | Met Zhirov 5197 | -4/Zhirov | Learned location of Quarantine (-2) 5197 | -4/Zhirov | Learned location of Command (-1) 5199 | -4/Zhirov | Zhirov requested help retrieving the SGEMP Prototype 5242 | -4/Zhirov | Found Alien Artifact 5242 | -4/Zhirov | Identified Integrated Dissipator 5242 | -4/Zhirov | Installed Integrated Dissipator, increased core heat dissipation (+20) 5266 | -4/Zhirov | Entered Proximity Caves 5511 | -3/Proximity Caves | Discovered new exit (range 15) 5520 | -3/Proximity Caves | Identified exit to Research 5521 | -3/Proximity Caves | Entered Research 5521 | -3/Research | Evolved 2 slots: Utility x2 5522 | -3/Research | Loaded intel: 113 trap records 5690 | -3/Research | Found Fusion Bomb Launcher 5792 | -3/Research | Lost 7 parts (2n4u1w) 5903 | -3/Research | Lost 5 parts (1p4u) 6193 | -3/Research | Lost 3 parts (1n1u1w) 6205 | -3/Research | Garrison activated, responded to threat 6224 | -3/Research | Core integrity fell below 50% 6269 | -3/Research | Discovered new exit (range 15) 6287 | -3/Research | Core integrity fell below 20% 6302 | -3/Research | Identified exit to Testing 6303 | -3/Research | Entered Testing 6304 | -3/Testing | Build established: Hacker-Mutant 6323 | -3/Testing | Lost 15 parts (3p6n2u4w) 6377 | -3/Testing | Found Prototype Slashing Weapon 6377 | -3/Testing | Identified Nanosword 6457 | -3/Testing | Found Prototype Processor 6457 | -3/Testing | Identified Exp. Signal Interpreter 6460 | -3/Testing | Found Prototype Launcher 6460 | -3/Testing | Identified Tactical Quantum Warhead 6465 | -3/Testing | Spotted Striker 6466 | -3/Testing | Spotted Striker 6511 | -3/Testing | Spotted Alpha 7 6518 | -3/Testing | Destroyed by Alpha 7 with Enhanced Gamma Rifle Last Messages --------------- 06456_ M-36 Artificer repairs W-44 Eye. 06457_ Acquired Prototype Processor. 06457_ Identified Exp. Signal Interpreter. 06460_ Acquired Prototype Launcher. 06460_ Identified Tactical Quantum Warhead. 06464_ M-36 Artificer fits Backup Propulsion VII on W-44 Eye. 06467_ ZHDK=BL4%B>I|Q=OC8MMYEX 06492_ The unstable cave ceiling collapses. 06499_ 6EKMRWPPD6%9UBJ3T5FDQ5GZRTPPUE%SGU%4H0T 06512_ Penetrated by Slug. 06512_ Slug penetrates Machine. 06514_ Mic. Antimatter Reactor destroyed. 06514_ Electron Diverter blasted off. 06514_ Knocked back. 06515_ Acquired 2 matter. 06515_ Slug penetrates Machine. 06515_ Machine disabled. 06516_ Adv. System Shield destroyed. 06516_ Critical hit (Blast). 06517_ System corrupted: Matter fused (-6). Map ----- +----------------------------------------------------+ | ????# """ # #?????# ??????????? | | ????# """ # #?????#" ????????? | | ????#! """ # #?????#""" #???????? | | ????######## #?????#" "#???????? | | ???????????# #?????##""""##???????? | | ???????????# #????????????????????? | | ???????????# #????????????????????? | | ???????????# #????????????????????? | | ???????????# #????????????????????? | | ???????????# #????????????????????? | | ???????????# ############?#???????? | | ???????????# # #???????? | | ???????????# # """ """ #???????? | | ???????????# + """ """ #???????? | | ???????????# # """ """ #???????? | | ???????????# # #???????? | | ???????????# #####"########???????? | | ???????????# #???# #??????????????? | | ??????????## #???###??????????????? | | ??????????# ???# #??????????????? | | ???????????# #???###??????????????? | | ???????#####++##### #??????????????? | | ???????#""" KK ## #??????????????? | | ???????#"" 7# ##??????????????? | | ???????#"" #"##???????????????? | | ???????#"& @% "###????????????????? | | ???????#"""" "#??????????????????? | | ???????#""""""""#??????????????????? | | ???????##########??????????????????? | | ???????????????????????????????????? | | ???????????????????????????????????? | | ???????????????????????????????????? | | | | | | | | | | | | | | | | | | | | | | | | | | | | | | | | | | | | | +----------------------------------------------------+ Best States ------------- Heat Dissipation 85 Energy Generation 41 Energy Capacity 240 Matter Stores 300 Matter Capacity 300 Sight Range 22 Robot Scan Range 16 Terrain Scan Range 20 Terrain Scan Density 110 ECM Strength 1 Cloak Strength 3 Power Amplification 30 Armor Coverage 225 Propulsion Shielding 33 Phase Shifting 10 Evasion (%) 68 Targeting Accuracy 8 Melee Accuracy 5 Core Analysis 6 Recoil Reduction 1 Offensive Hacking 22 Defensive Hacking 24 Item Schematics ----------------- Assault Drone Bay | -4/Zhirov | Free Exp. Heat Sink | -4/Zhirov | Free Exp. Optical Array | -4/Zhirov | Free Imp. Arc Thrower | -4/Zhirov | Free Robot Schematics ------------------ None Fabricated ------------ Nothing Alien Tech Used ----------------- Integrated Dissipator Achievements -------------- The Science Guy Challenges ------------ None Game ------ Seed FissionRemoteAutocannon Manual? 0 Play Time 04:02:53 Cumulative 56.8 hours Start 2024.03.08 @ 20:24:57 End 2024.03.10 @ 00:14:16 Sessions 1 Manual Loads 0 Difficulty Rogue Special Mode None Game No. 47 Rogue 47 Adventurer 0 Explorer 0 Win Type - Total 0 Types 0/0/0/0/0/0/0/0/0 Lore% 32 Gallery% 41 Achievement% 32 Wizard Run 0 Options --------- Layout 0 ASCII 0 Keyboard 0 Movement Numpad Keybinds 0 Fullscreen 1 Font 18/SmallcapsGlow Map View 76x50 Zoom Use 0% Tactical HUD 1 Map Filters NONE Filters NONE Steam X RUN: e8199d71-beee-46c2-9968-d2c877e68b05